[Event "Delancey UK Schools 2019 U18"]
[Site "Daventry"]
[Date "2019.09.24"]
[Round "2.4"]
[White "Boswell, Jacob Connor"]
[Black "Jaufarally, Nadia"]
[Result "1-0"]
[ECO "A01"]
[WhiteElo "2000"]
[BlackElo "1991"]
[Annotator "NA"]
[PlyCount "77"]
[EventDate "2019.09.24"]
[EventCountry "GBR"]
[SourceTitle "playchess.com"]
[Source "ChessBase"]
[SourceQuality "1"]
[TimeControl "40/5400+30:1800+30"]

1. b3 {[%emt 1:10:11]} Nf6 {[%emt 0:00:03]} 2. Bb2 g6 {[%emt 0:00:07]} 3. Bxf6 {[%emt 0:00:02]} exf6 4. c4 Bg7 {[%emt 0:00:01]} 5. Nc3 {[%emt 0:00:03]} Nc6 {[%emt 0:00:20]} 6. g3 {[%emt 0:00:10]} O-O {[%emt 0:00:03]} 7. Bg2 d6 {[%emt 0:00:09]} 8. Nf3 {[%emt 0:00:03]} f5 {[%emt 1:12:48]} 9. Rc1 {[%emt 0:03:02]} Ne7 {[%emt 0:02:05]} 10. d4 {[%emt 0:00:49]} d5 {[%emt 0:00:24]} 11. O-O {[%emt 0:00:40]} Be6 {[%emt 0:00:28]} 12. Na4 {[%emt 0:02:39]} b6 {[%emt 0:02:31]} 13. e3 {[%emt 0:00:01]} Rc8 {[%emt 0:00:23]} 14. c5 {[%emt 0:00:28]} b5 {[%emt 0:00:14]} 15. Nb2 {[%emt 0:00:35]} c6 {[%emt 0:00:36]} 16. Nd3 {[%emt 0:00:35]} Kh8 {[%emt 0:01:19]} 17. Qd2 {[%emt 0:00:41]} Ng8 {[%emt 0:00:42]} 18. a4 {[%emt 0:00:52]} a6 {[%emt 0:00:09]} 19. axb5 {[%emt 0:00:57]} axb5 {[%emt 0:00:07]} 20. Nb4 {[%emt 0:00:02]} Qc7 {[%emt 0:02:20]} 21. Ra1 {[%emt 0:00:37]} Ra8 {[%emt 0:01:11]} 22. Ra2 {[%emt 0:00:01]} Rfb8 {[%emt 0:04:13]} 23. Na6 {[%emt 0:03:37]} Qa7 {[%emt 0:01:40]} 24. Nxb8 {[%emt 0:00:02]} Qxa2 {[%emt 0:00:03]} 25. Qxa2 {[%emt 0:00:02]} Rxa2 {[%emt 0:00:01]} 26. Nxc6 {[%emt 0:00:02]} Rb2 {[%emt 0:00:23]} 27. b4 {[%emt 0:00:20]} Bf6 {[%emt 0:01:36]} 28. Ra1 {[%emt 0:02:17]} Ne7 {[%emt 0:00:48]} 29. Nxe7 {[%emt 0:01:05]} Bxe7 {[%emt 0:00:02]} 30. Bf1 {[%emt 0:00:47]} Rxb4 {[%emt 0:00:53]} 31. Ra5 {[%emt 0:00:02]} Rb1 {[%emt 0:01:11]} 32. Rxb5 {[%emt 0:00:27]} Rc1 {[%emt 0:00:06]} 33. Kg2 {[%emt 0:00:29]} Kg7 {[%emt 0:00:25]} 34. Ne5 {[%emt 0:01:03]} Bf6 {[%emt 0:00:20]} 35. Nd3 {[%emt 0:00:12]} Rc2 {[%emt 0:00:14]} 36. h4 {[%emt 0:00:52]} h6 {[%emt 0:00:10]} 37. Nf4 {[%emt 0:00:02]} Be7 {[%emt 0:00:19]} 38. Rb6 {[%emt 0:00:15]} Kf6 {[%emt 0:00:07]} 39. Nxd5+ {[%emt 0:00:03]} 1-0

[Event "Delancey UK Schools 2019 U18"]
[Site "Daventry"]
[Date "2019.09.24"]
[Round "2.5"]
[White "Jain, Gautam"]
[Black "Klingher, Dominic"]
[Result "0-1"]
[ECO "B24"]
[WhiteElo "1900"]
[BlackElo "2071"]
[Annotator "NA"]
[PlyCount "120"]
[EventDate "2019.09.24"]
[EventCountry "GBR"]
[SourceTitle "playchess.com"]
[Source "ChessBase"]
[SourceQuality "1"]
[TimeControl "40/5400+30:1800+30"]

1. e4 {[%emt 1:10:12]} e6 {[%emt 1:10:13]} 2. d3 {[%emt 0:00:29]} d5 {[%emt 0:00:28]} 3. Nc3 {[%emt 0:00:22]} Nf6 {[%emt 0:00:39]} 4. Bd2 {[%emt 0:01:01]} c5 {[%emt 0:00:31]} 5. g3 {[%emt 0:00:36]} Nc6 {[%emt 0:00:35]} 6. Bg2 {[%emt 0:00:26]} Be7 {[%emt 0:00:43]} 7. Nf3 {[%emt 0:01:07]} O-O {[%emt 0:01:10]} 8. O-O {[%emt 0:00:25]} c4 {[%emt 0:01:55]} 9. e5 {[%emt 0:03:16]} Nd7 {[%emt 0:00:34]} 10. dxc4 {[%emt 0:02:40]} d4 {[%emt 0:00:58]} 11. Ne2 {[%emt 0:06:13]} Ndxe5 {[%emt 0:00:28]} 12. Nexd4 {[%emt 0:01:41]} Nxc4 {[%emt 0:01:19]} 13. Nxc6 {[%emt 0:01:01]} bxc6 {[%emt 0:00:27]} 14. Bc3 {[%emt 0:00:31]} Bf6 {[%emt 0:03:01]} 15. Qxd8 {[%emt 0:04:49]} Rxd8 {[%emt 0:00:22]} 16. Bxf6 {[%emt 0:00:22]} gxf6 {[%emt 0:00:22]} 17. b3 {[%emt 0:00:21]} Na3 {[%emt 0:00:53]} 18. c4 {[%emt 0:01:09]} Bb7 {[%emt 0:00:35]} 19. c5 {[%emt 0:01:29]} Rd5 {[%emt 0:02:30]} 20. Rac1 {[%emt 0:00:33]} Rad8 {[%emt 0:00:29]} 21. Rfe1 {[%emt 0:01:20]} a5 {[%emt 0:00:44]} 22. Re4 {[%emt 0:00:29]} Ba6 {[%emt 0:01:01]} 23. h4 {[%emt 0:00:38]} Bb5 {[%emt 0:01:33]} 24. g4 {[%emt 0:00:27]} Rd1+ {[%emt 0:00:49]} 25. Rxd1 {[%emt 0:00:24]} Rxd1+ {[%emt 0:00:22]} 26. Re1 {[%emt 0:00:22]} Rd5 {[%emt 0:01:17]} 27. Rc1 {[%emt 0:00:21]} Be2 {[%emt 0:02:51]} 28. Nh2 {[%emt 0:00:39]} Rd2 {[%emt 0:01:10]} 29. Bxc6 {[%emt 0:00:21]} Rxa2 {[%emt 0:01:20]} 30. Ba4 {[%emt 0:00:51]} Nc2 {[%emt 0:02:35]} 31. f3 {[%emt 0:00:41]} Nd4 {[%emt 0:00:37]} 32. c6 {[%emt 0:00:30]} Ba6 {[%emt 0:00:25]} 33. Rc5 {[%emt 0:00:31]} Ne2+ {[%emt 0:01:29]} 34. Kh1 {[%emt 0:00:31]} Ra1+ {[%emt 0:01:26]} 35. Kg2 {[%emt 0:00:23]} Nf4+ {[%emt 0:00:22]} 36. Kg3 {[%emt 0:00:36]} e5 {[%emt 0:00:24]} 37. h5 {[%emt 0:00:31]} Rg1+ {[%emt 0:00:35]} 38. Kh4 {[%emt 0:00:28]} Rg2 {[%emt 0:00:43]} 39. Nf1 {[%emt 0:00:33]} Bxf1 {[%emt 0:00:24]} 40. c7 {[%emt 0:00:20]} Ba6 {[%emt 0:00:53]} 41. c8=Q+ {[%emt 0:30:22]} Bxc8 {[%emt 0:30:21]} 42. Rxc8+ {[%emt 0:00:22]} Kg7 {[%emt 0:00:20]} 43. Rc5 {[%emt 0:00:50]} Ne2 {[%emt 0:01:12]} 44. Kh3 {[%emt 0:00:22]} Nf4+ {[%emt 0:00:21]} 45. Kh4 {[%emt 0:00:21]} Rf2 {[%emt 0:00:33]} 46. Kg3 {[%emt 0:00:32]} Rg2+ {[%emt 0:00:22]} 47. Kh4 {[%emt 0:00:22]} Rh2+ {[%emt 0:00:43]} 48. Kg3 {[%emt 0:00:21]} Rh3+ {[%emt 0:00:22]} 49. Kf2 {[%emt 0:00:23]} Nd3+ {[%emt 0:00:31]} 50. Kg2 {[%emt 0:00:21]} Nxc5 {[%emt 0:00:35]} 51. Kxh3 {[%emt 0:00:20]} f5 {[%emt 0:00:37]} 52. g5 {[%emt 0:01:31]} h6 {[%emt 0:00:24]} 53. Kh4 {[%emt 0:00:32]} hxg5+ {[%emt 0:00:27]} 54. Kxg5 {[%emt 0:00:21]} f4 {[%emt 0:00:33]} 55. Kf5 {[%emt 0:00:33]} f6 {[%emt 0:00:32]} 56. h6+ {[%emt 0:00:33]} Kxh6 {[%emt 0:00:22]} 57. Kxf6 {[%emt 0:00:22]} e4 {[%emt 0:00:35]} 58. Bc6 {[%emt 0:00:41]} e3 {[%emt 0:00:34]} 59. Bb5 {[%emt 0:00:22]} Nxb3 {[%emt 0:00:22]} 60. Be2 {[%emt 0:00:37]} Nd4 {[%emt 0:00:24]} 0-1

[Event "Delancey UK Schools 2019 U18"]
[Site "Daventry"]
[Date "2019.09.24"]
[Round "2.6"]
[White "Grieve, Harry"]
[Black "Golding, James"]
[Result "1-0"]
[ECO "C44"]
[WhiteElo "2277"]
[BlackElo "2075"]
[Annotator "ChessBase"]
[PlyCount "77"]
[EventDate "2019.09.24"]
[EventCountry "GBR"]
[SourceTitle "playchess.com"]
[Source "ChessBase"]
[SourceQuality "1"]
[TimeControl "40/5400+30:1800+30"]

1. e4 {[%emt 1:10:13]} e5 {[%emt 1:10:12]} 2. Nf3 {[%emt 0:00:22]} Nc6 {[%emt 0:00:21]} 3. Be2 {[%emt 0:00:22]} Nf6 {[%emt 0:00:22]} 4. d3 {[%emt 0:00:21]} d5 {[%emt 0:00:22]} 5. Nbd2 {[%emt 0:00:22]} Bc5 {[%emt 0:00:21]} 6. c3 {[%emt 0:00:24]} a5 {[%emt 0:00:46]} 7. Qc2 {[%emt 0:00:24]} O-O {[%emt 0:00:24]} 8. h3 {[%emt 0:00:24]} h6 {[%emt 0:00:23]} 9. Nf1 {[%emt 0:00:24]} Be6 {[%emt 0:01:12]} 10. g4 {[%emt 0:00:22]} Nd7 {[%emt 0:01:28]} 11. Ng3 {[%emt 0:01:06]} Be7 {[%emt 0:02:35]} 12. Nf5 {[%emt 0:01:39]} Bxf5 {[%emt 0:03:37]} 13. gxf5 {[%emt 0:00:37]} Nf6 {[%emt 0:02:35]} 14. Rg1 {[%emt 0:01:21]} Kh7 {[%emt 0:00:43]} 15. a4 {[%emt 0:01:01]} dxe4 {[%emt 0:02:40]} 16. dxe4 {[%emt 0:00:27]} Rg8 {[%emt 0:00:23]} 17. Be3 {[%emt 0:01:23]} g6 {[%emt 0:00:37]} 18. Qb3 {[%emt 0:03:32]} gxf5 {[%emt 0:03:50]} 19. Qxf7+ {[%emt 0:02:10]} Kh8 {[%emt 0:00:22]} 20. Rg6 {[%emt 0:02:11]} Rxg6 {[%emt 0:01:20]} 21. Qxg6 {[%emt 0:00:21]} f4 {[%emt 0:01:41]} 22. Qxh6+ {[%emt 0:01:04]} Nh7 {[%emt 0:00:22]} 23. Bd2 {[%emt 0:00:55]} Qg8 {[%emt 0:00:43]} 24. c4 {[%emt 0:02:06]} Qg2 {[%emt 0:01:35]} 25. Qh5 {[%emt 0:02:51]} Bf6 {[%emt 0:00:39]} 26. Bf1 {[%emt 0:00:46]} Qg8 {[%emt 0:00:37]} 27. Bc3 {[%emt 0:00:57]} Re8 {[%emt 0:00:48]} 28. O-O-O {[%emt 0:00:45]} Re7 {[%emt 0:00:59]} 29. Rd5 {[%emt 0:01:32]} Qg7 {[%emt 0:01:13]} 30. Bxa5 {[%emt 0:00:59]} Kg8 {[%emt 0:00:36]} 31. Bc3 {[%emt 0:00:44]} Nf8 {[%emt 0:00:42]} 32. c5 {[%emt 0:01:05]} Ng6 {[%emt 0:00:52]} 33. Bc4 {[%emt 0:00:41]} Kf8 {[%emt 0:00:21]} 34. Rd1 {[%emt 0:00:36]} Qh7 {[%emt 0:00:58]} 35. Qf5 {[%emt 0:00:51]} Kg7 {[%emt 0:00:32]} 36. Rg1 {[%emt 0:00:43]} Nd4 {[%emt 0:00:35]} 37. Bxd4 {[%emt 0:00:32]} exd4 {[%emt 0:00:21]} 38. e5 {[%emt 0:00:33]} Bxe5 {[%emt 0:00:24]} 39. Nxe5 {[%emt 0:00:28]} 1-0

[Event "Delancey UK Schools 2019 U18"]
[Site "Daventry"]
[Date "2019.09.24"]
[Round "2.8"]
[White "Pollack, Oscar"]
[Black "Stubbs, Oliver"]
[Result "1-0"]
[ECO "C10"]
[WhiteElo "2112"]
[BlackElo "1835"]
[Annotator "ChessBase"]
[PlyCount "87"]
[EventDate "2019.09.24"]
[EventCountry "GBR"]
[SourceTitle "playchess.com"]
[Source "ChessBase"]
[SourceQuality "1"]
[TimeControl "40/5400+30:1800+30"]

1. e4 {[%emt 1:10:10]} e6 {[%emt 1:10:11]} 2. d4 {[%emt 0:00:21]} d5 {[%emt 0:00:21]} 3. Nc3 {[%emt 0:00:21]} dxe4 4. Nxe4 {[%emt 0:00:21]} Nd7 {[%emt 0:00:43]} 5. Nf3 {[%emt 0:00:22]} Ngf6 {[%emt 0:00:21]} 6. Nxf6+ {[%emt 0:00:24]} Nxf6 {[%emt 0:00:21]} 7. Bd3 {[%emt 0:00:23]} c5 {[%emt 0:00:21]} 8. O-O {[%emt 0:00:25]} cxd4 {[%emt 0:00:21]} 9. Nxd4 {[%emt 0:00:25]} Be7 {[%emt 0:00:21]} 10. Be3 {[%emt 0:01:14]} O-O {[%emt 0:00:23]} 11. Qe2 {[%emt 0:00:45]} Qc7 {[%emt 0:01:07]} 12. c3 {[%emt 0:00:43]} Bd7 {[%emt 0:00:50]} 13. Rad1 {[%emt 0:00:50]} Rfd8 {[%emt 0:01:03]} 14. Bb1 {[%emt 0:00:57]} Bd6 {[%emt 0:01:55]} 15. h3 {[%emt 0:00:39]} Bh2+ {[%emt 0:01:09]} 16. Kh1 {[%emt 0:00:29]} Bf4 {[%emt 0:00:22]} 17. Rfe1 {[%emt 0:01:42]} Bxe3 {[%emt 0:00:22]} 18. Qxe3 {[%emt 0:00:23]} a6 {[%emt 0:01:26]} 19. Nf3 {[%emt 0:01:09]} Ba4 {[%emt 0:01:33]} 20. Rd4 {[%emt 0:00:49]} Rxd4 {[%emt 0:00:37]} 21. Qxd4 {[%emt 0:00:27]} Bc6 {[%emt 0:00:56]} 22. Ne5 {[%emt 0:01:27]} Rd8 {[%emt 0:00:31]} 23. Qh4 {[%emt 0:00:50]} h6 {[%emt 0:03:56]} 24. Bd3 {[%emt 0:05:44]} Rd5 {[%emt 0:02:30]} 25. f4 {[%emt 0:01:29]} Rd6 {[%emt 0:02:32]} 26. f5 {[%emt 0:02:47]} exf5 {[%emt 0:00:21]} 27. Bxf5 {[%emt 0:00:45]} Rd2 {[%emt 0:00:24]} 28. Nxc6 {[%emt 0:01:22]} Qxc6 {[%emt 0:00:43]} 29. Qg3 {[%emt 0:02:04]} Qd6 {[%emt 0:01:24]} 30. Qxd6 {[%emt 0:00:35]} Rxd6 {[%emt 0:00:22]} 31. Re7 {[%emt 0:00:26]} g6 {[%emt 0:00:22]} 32. Bc8 {[%emt 0:00:28]} b5 {[%emt 0:04:50]} 33. Ra7 {[%emt 0:00:22]} Ne4 {[%emt 0:01:38]} 34. Bxa6 {[%emt 0:01:36]} h5 {[%emt 0:01:11]} 35. Bxb5 {[%emt 0:00:50]} h4 {[%emt 0:00:46]} 36. Rd7 {[%emt 0:01:19]} Re6 {[%emt 0:00:53]} 37. Bc4 {[%emt 0:01:09]} Ng3+ {[%emt 0:00:27]} 38. Kg1 {[%emt 0:00:36]} Rf6 {[%emt 0:00:59]} 39. a4 {[%emt 0:00:37]} Kf8 {[%emt 0:00:32]} 40. a5 {[%emt 0:00:40]} Ke8 {[%emt 0:00:21]} 41. Rxf7 {[%emt 0:31:11]} Rd6 {[%emt 0:30:21]} 42. Rf4 {[%emt 0:01:01]} g5 {[%emt 0:00:30]} 43. Rd4 {[%emt 0:00:27]} Rf6 {[%emt 0:00:44]} 44. a6 {[%emt 0:00:25]} 1-0

[Event "Delancey UK Schools 2019 U18"]
[Site "Daventry"]
[Date "2019.09.24"]
[Round "2.9"]
[White "Rathbone-Jones, Ifan"]
[Black "Stewart, Lilya"]
[Result "1-0"]
[ECO "D00"]
[WhiteElo "1879"]
[BlackElo "1567"]
[Annotator "NA"]
[PlyCount "47"]
[EventDate "2019.09.24"]
[EventCountry "GBR"]
[SourceTitle "playchess.com"]
[Source "ChessBase"]
[SourceQuality "1"]
[TimeControl "40/5400+30:1800+30"]

1. d4 {[%emt 1:10:11]} d5 {[%emt 1:10:13]} 2. Bf4 {[%emt 0:00:21]} e6 {[%emt 0:00:27]} 3. Nd2 {[%emt 0:00:23]} Bd6 {[%emt 0:00:22]} 4. Bg3 {[%emt 0:00:21]} Nf6 {[%emt 0:00:24]} 5. e3 {[%emt 0:00:24]} a6 {[%emt 0:00:23]} 6. Bd3 {[%emt 0:00:22]} Nbd7 {[%emt 0:00:27]} 7. Ngf3 {[%emt 0:00:25]} O-O {[%emt 0:00:38]} 8. c3 {[%emt 0:00:22]} c5 {[%emt 0:00:30]} 9. Bxd6 {[%emt 0:00:27]} Re8 {[%emt 0:00:28]} 10. O-O {[%emt 0:01:21]} c4 {[%emt 0:00:29]} 11. Bc2 {[%emt 0:00:26]} Qb6 {[%emt 0:01:00]} 12. Ba3 {[%emt 0:00:30]} Qc7 {[%emt 0:01:05]} 13. e4 {[%emt 0:00:30]} Nf8 {[%emt 0:03:18]} 14. e5 {[%emt 0:01:28]} N6d7 {[%emt 0:00:30]} 15. Nh4 {[%emt 0:01:46]} f6 {[%emt 0:00:30]} 16. f4 {[%emt 0:00:30]} Qd8 {[%emt 0:00:30]} 17. Qf3 {[%emt 0:00:30]} fxe5 {[%emt 0:01:37]} 18. fxe5 {[%emt 0:01:41]} b5 {[%emt 0:03:18]} 19. Qh5 {[%emt 0:03:31]} g6 {[%emt 0:01:22]} 20. Nxg6 {[%emt 0:01:07]} hxg6 {[%emt 0:02:06]} 21. Bxg6 {[%emt 0:00:22]} Nxg6 {[%emt 0:00:29]} 22. Qxg6+ {[%emt 0:00:05]} Kh8 {[%emt 0:00:23]} 23. Rf7 {[%emt 0:00:40]} Qh4 {[%emt 0:01:21]} 24. Qg7# {[%emt 0:00:05]} 1-0

[Event "Delancey UK Schools 2019 U18"]
[Site "Daventry"]
[Date "2019.09.24"]
[Round "2.10"]
[White "Golding, Alex"]
[Black "Cocks, Elliot"]
[Result "1-0"]
[ECO "B43"]
[WhiteElo "2306"]
[BlackElo "1881"]
[Annotator "ChessBase"]
[PlyCount "71"]
[EventDate "2019.09.24"]
[EventCountry "GBR"]
[SourceTitle "playchess.com"]
[Source "ChessBase"]
[SourceQuality "1"]
[TimeControl "40/5400+30:1800+30"]

1. e4 {[%emt 1:10:19]} c5 {[%emt 1:10:36]} 2. Nf3 {[%emt 0:00:25]} e6 {[%emt 0:00:29]} 3. d4 {[%emt 0:00:24]} cxd4 {[%emt 0:00:23]} 4. Nxd4 {[%emt 0:00:20]} a6 {[%emt 0:00:22]} 5. Nc3 {[%emt 0:00:29]} Qc7 {[%emt 0:00:26]} 6. Nb3 {[%emt 0:00:34]} b5 {[%emt 0:00:51]} 7. Be3 {[%emt 0:01:27]} Bb7 {[%emt 0:00:27]} 8. Bd3 {[%emt 0:00:34]} Nf6 {[%emt 0:00:31]} 9. f3 {[%emt 0:01:05]} d5 {[%emt 0:00:54]} 10. exd5 {[%emt 0:00:38]} Nxd5 {[%emt 0:00:23]} 11. Nxd5 {[%emt 0:00:22]} Bxd5 {[%emt 0:00:23]} 12. Qd2 {[%emt 0:01:04]} Be7 {[%emt 0:01:34]} 13. a4 {[%emt 0:01:43]} b4 {[%emt 0:01:34]} 14. O-O {[%emt 0:00:00]} Nd7 {[%emt 0:00:36]} 15. Qf2 {[%emt 0:00:22]} O-O {[%emt 0:00:55]} 16. Rfc1 {[%emt 0:00:26]} Rfc8 {[%emt 0:01:03]} 17. Nd2 {[%emt 0:01:46]} Ne5 {[%emt 0:02:42]} 18. Bf1 {[%emt 0:00:36]} Nc4 {[%emt 0:01:19]} 19. Bxc4 Bxc4 20. c3 {[%emt 0:01:39]} Bd3 {[%emt 0:01:16]} 21. c4 {[%emt 0:01:43]} Bf6 {[%emt 0:01:44]} 22. Nb3 {[%emt 0:00:57]} Qe5 {[%emt 0:05:41]} 23. Bd4 {[%emt 0:01:11]} Qf5 {[%emt 0:00:22]} 24. Bxf6 {[%emt 0:00:35]} Qxf6 {[%emt 0:00:24]} 25. Nc5 {[%emt 0:02:21]} Rd8 {[%emt 0:00:57]} 26. b3 {[%emt 0:00:35]} Bg6 {[%emt 0:01:04]} 27. Rd1 {[%emt 0:01:38]} a5 {[%emt 0:01:01]} 28. Nb7 {[%emt 0:02:22]} Rd7 {[%emt 0:01:37]} 29. Rxd7 {[%emt 0:01:06]} Qxa1+ {[%emt 0:00:22]} 30. Qf1 {[%emt 0:00:22]} Qf6 {[%emt 0:00:26]} 31. c5 {[%emt 0:01:02]} h6 {[%emt 0:01:07]} 32. c6 {[%emt 0:01:18]} e5 {[%emt 0:02:08]} 33. Rd6 {[%emt 0:00:46]} Qe7 {[%emt 0:00:31]} 34. Qc4 {[%emt 0:00:44]} e4 {[%emt 0:00:45]} 35. Rd7 {[%emt 0:02:26]} Qe5 {[%emt 0:01:58]} 36. Qd4 {[%emt 0:01:24]} 1-0

[Event "Delancey UK Schools 2019 U18"]
[Site "Daventry"]
[Date "2019.09.24"]
[Round "2.11"]
[White "Modhura, Urbi"]
[Black "Brown, Tom"]
[Result "0-1"]
[ECO "B17"]
[WhiteElo "1451"]
[BlackElo "2005"]
[Annotator "NA"]
[PlyCount "112"]
[EventDate "2019.09.24"]
[EventCountry "GBR"]
[SourceTitle "playchess.com"]
[Source "ChessBase"]
[SourceQuality "1"]
[TimeControl "40/5400+30:1800+30"]

1. e4 {[%emt 1:10:13]} c6 {[%emt 1:10:13]} 2. d4 {[%emt 0:00:27]} d5 {[%emt 0:00:21]} 3. Nc3 {[%emt 0:00:22]} dxe4 {[%emt 0:00:22]} 4. Nxe4 {[%emt 0:00:23]} Nd7 {[%emt 0:00:21]} 5. Nf3 {[%emt 0:00:29]} Ngf6 {[%emt 0:00:22]} 6. Ng3 {[%emt 0:00:24]} e6 {[%emt 0:00:35]} 7. c3 {[%emt 0:00:58]} Bd6 {[%emt 0:00:58]} 8. Bd3 {[%emt 0:01:30]} Qc7 {[%emt 0:01:26]} 9. Qe2 {[%emt 0:04:54]} O-O {[%emt 0:01:43]} 10. O-O {[%emt 0:00:40]} b6 {[%emt 0:00:59]} 11. Bd2 {[%emt 0:02:08]} Bb7 {[%emt 0:00:46]} 12. Rac1 {[%emt 0:01:27]} c5 {[%emt 0:01:34]} 13. Rfe1 {[%emt 0:04:05]} Rfe8 {[%emt 0:02:36]} 14. Ne4 {[%emt 0:03:26]} Nxe4 {[%emt 0:02:14]} 15. Bxe4 {[%emt 0:00:24]} Nf6 {[%emt 0:02:10]} 16. Bxb7 {[%emt 0:00:41]} Qxb7 {[%emt 0:00:22]} 17. Ne5 {[%emt 0:00:51]} cxd4 {[%emt 0:01:03]} 18. cxd4 {[%emt 0:00:32]} Rac8 {[%emt 0:00:59]} 19. a3 {[%emt 0:01:55]} Rxc1 {[%emt 0:01:19]} 20. Rxc1 {[%emt 0:00:24]} Rc8 {[%emt 0:00:39]} 21. Nc4 {[%emt 0:02:03]} Be7 {[%emt 0:01:46]} 22. Rd1 {[%emt 0:02:18]} h6 {[%emt 0:01:42]} 23. Bf4 {[%emt 0:00:41]} Qd5 {[%emt 0:01:34]} 24. Ne3 {[%emt 0:00:29]} Qe4 {[%emt 0:01:15]} 25. Bg3 {[%emt 0:00:23]} Nd5 {[%emt 0:01:09]} 26. Qa6 {[%emt 0:00:30]} Rc6 {[%emt 0:01:34]} 27. Nxd5 {[%emt 0:00:24]} exd5 {[%emt 0:01:10]} 28. Qxa7 {[%emt 0:00:40]} Qxd4 {[%emt 0:01:09]} 29. Qa8+ {[%emt 0:00:25]} Kh7 {[%emt 0:00:22]} 30. Re1 {[%emt 0:00:26]} Qd2 {[%emt 0:01:10]} 31. Rf1 {[%emt 0:00:24]} Rc1 {[%emt 0:00:38]} 32. Qa6 {[%emt 0:00:36]} Qxb2 {[%emt 0:01:01]} 33. h3 {[%emt 0:00:27]} Rxf1+ {[%emt 0:00:29]} 34. Qxf1 {[%emt 0:00:23]} Qxa3 {[%emt 0:00:34]} 35. Qb1+ {[%emt 0:00:29]} g6 {[%emt 0:00:40]} 36. Qxb6 {[%emt 0:00:24]} Qc5 {[%emt 0:00:30]} 37. Qxc5 {[%emt 0:00:24]} Bxc5 {[%emt 0:00:22]} 38. Kf1 {[%emt 0:00:23]} Kg7 {[%emt 0:00:24]} 39. Ke2 {[%emt 0:00:24]} Kf6 {[%emt 0:00:25]} 40. Kf3 {[%emt 0:00:24]} Ke6 {[%emt 0:00:30]} 41. Ke2 {[%emt 0:30:25]} Bd6 {[%emt 0:30:27]} 42. Kd3 {[%emt 0:00:31]} Bxg3 {[%emt 0:00:25]} 43. fxg3 {[%emt 0:00:23]} Ke5 {[%emt 0:00:25]} 44. Ke3 {[%emt 0:00:28]} d4+ {[%emt 0:00:30]} 45. Kf2 {[%emt 0:00:27]} Ke4 {[%emt 0:00:23]} 46. Ke2 {[%emt 0:00:22]} h5 {[%emt 0:00:46]} 47. h4 {[%emt 0:00:31]} Kf5 {[%emt 0:00:34]} 48. Kd3 {[%emt 0:00:25]} Kg4 {[%emt 0:00:21]} 49. Kxd4 {[%emt 0:00:25]} Kxg3 {[%emt 0:00:22]} 50. Ke4 {[%emt 0:00:25]} Kxg2 {[%emt 0:00:43]} 51. Kf4 {[%emt 0:00:23]} Kh3 {[%emt 0:00:34]} 52. Kg5 {[%emt 0:00:23]} Kg3 {[%emt 0:00:33]} 53. Kf6 {[%emt 0:00:30]} Kxh4 {[%emt 0:00:22]} 54. Ke5 {[%emt 0:00:32]} Kg3 {[%emt 0:00:22]} 55. Ke4 {[%emt 0:00:27]} h4 {[%emt 0:00:22]} 56. Ke5 {[%emt 0:00:23]} h3 {[%emt 0:00:21]} 0-1

[Event "Delancey UK Schools 2019 U18"]
[Site "Daventry"]
[Date "2019.09.24"]
[Round "2.13"]
[White "Ye, Kevin"]
[Black "Audhora, Purba"]
[Result "1-0"]
[ECO "C54"]
[WhiteElo "1758"]
[BlackElo "1168"]
[Annotator "NA"]
[PlyCount "40"]
[EventDate "2019.09.24"]
[EventCountry "GBR"]
[SourceTitle "playchess.com"]
[Source "ChessBase"]
[SourceQuality "1"]
[TimeControl "40/5400+30:1800+30"]

1. e4 {[%emt 1:10:12]} e5 {[%emt 1:10:11]} 2. Nf3 {[%emt 0:00:14]} Nc6 {[%emt 0:00:14]} 3. Bc4 {[%emt 0:00:30]} Nf6 {[%emt 0:00:30]} 4. d3 {[%emt 0:00:29]} Bc5 {[%emt 0:00:30]} 5. c3 {[%emt 0:00:23]} d6 {[%emt 0:00:35]} 6. Nbd2 {[%emt 0:00:25]} O-O {[%emt 0:00:40]} 7. h3 {[%emt 0:00:44]} Be6 {[%emt 0:00:29]} 8. Bb3 {[%emt 0:00:22]} d5 {[%emt 0:00:53]} 9. exd5 {[%emt 0:00:47]} Nxd5 {[%emt 0:00:53]} 10. Ne4 {[%emt 0:00:31]} Bb6 {[%emt 0:00:48]} 11. O-O {[%emt 0:00:35]} h6 {[%emt 0:01:29]} 12. Re1 {[%emt 0:01:14]} Qd7 {[%emt 0:02:07]} 13. Bxh6 {[%emt 0:11:01]} Rfd8 {[%emt 0:06:06]} 14. Bg5 {[%emt 0:01:25]} Re8 {[%emt 0:03:49]} 15. Ba4 {[%emt 0:03:41]} Nde7 {[%emt 0:03:32]} 16. Nxe5 {[%emt 0:00:51]} Qd5 {[%emt 0:02:38]} 17. Bxe7 {[%emt 0:02:37]} Rxe7 {[%emt 0:01:45]} 18. Nxc6 {[%emt 0:01:04]} bxc6 {[%emt 0:00:31]} 19. Qf3 {[%emt 0:01:28]} Rd8 {[%emt 0:01:04]} 20. Bxc6 {[%emt 0:01:02]} Qg5 1-0

[Event "Delancey UK Schools 2019 U18"]
[Site "Daventry"]
[Date "2019.09.24"]
[Round "2.16"]
[White "Kirklys, Domantas"]
[Black "Isaksen, Peter A"]
[Result "0-1"]
[ECO "B22"]
[WhiteElo "1125"]
[BlackElo "1858"]
[Annotator "NA"]
[PlyCount "78"]
[EventDate "2019.09.24"]
[EventCountry "GBR"]
[SourceTitle "playchess.com"]
[Source "ChessBase"]
[SourceQuality "1"]
[TimeControl "40/5400+30:1800+30"]

1. e4 {[%emt 1:10:12]} c5 {[%emt 1:10:11]} 2. c3 {[%emt 0:00:23]} d5 {[%emt 0:00:25]} 3. exd5 {[%emt 0:00:38]} Qxd5 {[%emt 0:00:21]} 4. d4 {[%emt 0:00:28]} Nf6 {[%emt 0:00:22]} 5. Nf3 {[%emt 0:00:26]} Bg4 {[%emt 0:00:21]} 6. Be2 {[%emt 0:00:23]} e6 {[%emt 0:00:27]} 7. O-O {[%emt 0:00:51]} Nc6 {[%emt 0:00:29]} 8. Be3 {[%emt 0:00:37]} cxd4 {[%emt 0:00:22]} 9. Nxd4 {[%emt 0:01:16]} Nxd4 {[%emt 0:01:10]} 10. Bxd4 {[%emt 0:00:50]} Bxe2 {[%emt 0:00:23]} 11. Qxe2 {[%emt 0:00:24]} Be7 {[%emt 0:00:22]} 12. Nd2 {[%emt 0:01:08]} O-O {[%emt 0:00:29]} 13. f3 {[%emt 0:01:21]} Rfd8 {[%emt 0:02:41]} 14. Ne4 {[%emt 0:01:09]} Nxe4 {[%emt 0:01:11]} 15. Qxe4 {[%emt 0:00:28]} Qb5 {[%emt 0:00:32]} 16. b3 {[%emt 0:01:55]} a5 {[%emt 0:01:29]} 17. Qg4 {[%emt 0:01:37]} e5 {[%emt 0:00:33]} 18. Bf2 {[%emt 0:00:58]} a4 {[%emt 0:03:24]} 19. c4 {[%emt 0:02:38]} Qc6 {[%emt 0:02:11]} 20. Qf5 {[%emt 0:02:36]} Rd2 {[%emt 0:04:25]} 21. Rfd1 {[%emt 0:04:28]} Rad8 {[%emt 0:03:05]} 22. Rxd2 {[%emt 0:02:04]} Rxd2 {[%emt 0:00:22]} 23. Qe4 {[%emt 0:02:32]} Qxe4 {[%emt 0:02:32]} 24. fxe4 {[%emt 0:00:25]} a3 {[%emt 0:00:23]} 25. Kf1 {[%emt 0:01:53]} Bb4 {[%emt 0:00:26]} 26. Be3 {[%emt 0:00:51]} Rc2 {[%emt 0:01:11]} 27. Rd1 {[%emt 0:00:37]} h6 {[%emt 0:00:40]} 28. Rd8+ {[%emt 0:00:24]} Kh7 {[%emt 0:00:23]} 29. Rb8 {[%emt 0:00:23]} Rxa2 {[%emt 0:00:24]} 30. Rxb7 {[%emt 0:00:39]} Ra1+ {[%emt 0:00:22]} 31. Ke2 {[%emt 0:00:26]} a2 {[%emt 0:00:22]} 32. Ra7 {[%emt 0:00:45]} Re1+ {[%emt 0:00:22]} 33. Kf2 {[%emt 0:00:29]} a1=Q {[%emt 0:00:34]} 34. Rxa1 {[%emt 0:00:33]} Rxa1 {[%emt 0:00:23]} 35. c5 {[%emt 0:00:31]} Rb1 {[%emt 0:00:34]} 36. c6 {[%emt 0:00:31]} Rxb3 {[%emt 0:00:42]} 37. c7 {[%emt 0:00:24]} Rc3 {[%emt 0:00:21]} 38. Bb6 {[%emt 0:00:24]} Bc5+ {[%emt 0:00:27]} 39. Ke2 {[%emt 0:00:28]} Bxb6 {[%emt 0:00:21]} 0-1